[Event "Late-Titled-Tuesday-Blitz-April-23-2024"]
[Site "Chess.com"]
[Date "2024.04.23"]
[Round "3"]
[White "topotun"]
[Black "malakismayil"]
[Result "1-0"]
[WhiteElo "2851"]
[BlackElo "2586"]
[TimeControl "180+1"]
[EndTime "14:30:04 PDT"]
[Termination "topotun won on time"]

1. e4 {[%clk 0:03:00.9]} 1... e5 {[%clk 0:02:59.5]} 2. Nf3 {[%clk 0:03:01.2]}
2... Nc6 {[%clk 0:02:59.8]} 3. Bb5 {[%clk 0:03:01.5]} 3... a6 {[%clk 0:02:58.9]}
4. Ba4 {[%clk 0:03:01.9]} 4... Nf6 {[%clk 0:02:59.2]} 5. O-O {[%clk 0:03:02.1]}
5... b5 {[%clk 0:02:59.8]} 6. Bb3 {[%clk 0:03:01.9]} 6... Be7 {[%clk 0:03:00.7]}
7. Re1 {[%clk 0:03:01.1]} 7... O-O {[%clk 0:03:01.2]} 8. c3 {[%clk 0:03:00.9]}
8... d6 {[%clk 0:02:58.9]} 9. h3 {[%clk 0:03:00.8]} 9... h6 {[%clk 0:02:52.8]}
10. d4 {[%clk 0:03:00]} 10... Re8 {[%clk 0:02:52.5]} 11. Nbd2 {[%clk 0:02:53.9]}
11... Bf8 {[%clk 0:02:52.1]} 12. Nf1 {[%clk 0:02:53]} 12... Bb7 {[%clk
0:02:48.5]} 13. Ng3 {[%clk 0:02:53.2]} 13... Na5 {[%clk 0:02:48.2]} 14. Bc2
{[%clk 0:02:53.2]} 14... c5 {[%clk 0:02:47.6]} 15. d5 {[%clk 0:02:51.4]} 15...
Bc8 {[%clk 0:02:39.1]} 16. b3 {[%clk 0:02:50.4]} 16... Bd7 {[%clk 0:02:32.1]}
17. Nh2 {[%clk 0:02:39.5]} 17... g6 {[%clk 0:02:30.2]} 18. Be3 {[%clk
0:02:35.5]} 18... Bg7 {[%clk 0:02:29.4]} 19. Qd2 {[%clk 0:02:34.8]} 19... Kh7
{[%clk 0:02:29.9]} 20. Rf1 {[%clk 0:02:29]} 20... c4 {[%clk 0:02:17.5]} 21. b4
{[%clk 0:02:27.4]} 21... Nb7 {[%clk 0:02:17.7]} 22. f4 {[%clk 0:02:25.8]} 22...
exf4 {[%clk 0:02:06]} 23. Rxf4 {[%clk 0:02:24.6]} 23... a5 {[%clk 0:02:03.9]}
24. Bd4 {[%clk 0:02:07.3]} 24... axb4 {[%clk 0:01:55.9]} 25. cxb4 {[%clk
0:02:01]} 25... Ra3 {[%clk 0:01:46]} 26. Raf1 {[%clk 0:01:28.4]} 26... Re5
{[%clk 0:01:21.8]} 27. Nf3 {[%clk 0:01:07]} 27... Qe7 {[%clk 0:01:08.3]} 28. Bb1
{[%clk 0:01:04.5]} 28... Nd8 {[%clk 0:00:38]} 29. Qb2 {[%clk 0:01:00.4]} 29...
Ra6 {[%clk 0:00:19.9]} 30. Nxe5 {[%clk 0:00:53.8]} 30... dxe5 {[%clk 0:00:20.8]}
31. Bxe5 {[%clk 0:00:54.4]} 31... Nxd5 {[%clk 0:00:12.3]} 32. Bxg7 {[%clk
0:00:50.4]} 32... Nxf4 {[%clk 0:00:12.2]} 33. Rxf4 {[%clk 0:00:47.1]} 33... Ne6
{[%clk 0:00:12.2]} 34. Bf6 {[%clk 0:00:46]} 34... Qd6 {[%clk 0:00:09.1]} 35. Rf3
{[%clk 0:00:43.2]} 35... Qd1+ {[%clk 0:00:04]} 36. Kh2 {[%clk 0:00:42.2]} 36...
Bc6 {[%clk 0:00:02.8]} 37. Bc3 {[%clk 0:00:38.1]} 37... Ra7 {[%clk 0:00:02.6]}
38. Qf2 {[%clk 0:00:37.5]} 38... Qd7 {[%clk 0:00:01.5]} 39. h4 {[%clk
0:00:25.5]} 39... Qe7 {[%clk 0:00:01.5]} 40. Rf6 {[%clk 0:00:22.8]} 40... Rd7
{[%clk 0:00:01.8]} 41. h5 {[%clk 0:00:21.5]} 41... Ng5 {[%clk 0:00:01.9]} 42.
hxg6+ {[%clk 0:00:20.6]} 42... fxg6 {[%clk 0:00:02.8]} 43. Qf4 {[%clk
0:00:20.3]} 43... Ne6 {[%clk 0:00:02.3]} 44. Qe5 {[%clk 0:00:20.1]} 44... Ng7
{[%clk 0:00:02.2]} 45. Qxe7 {[%clk 0:00:18]} 45... Rxe7 {[%clk 0:00:03.1]} 46.
Rxc6 {[%clk 0:00:18.6]} 1-0

[Event "Late-Titled-Tuesday-Blitz-April-23-2024"]
[Site "Chess.com"]
[Date "2024.04.23"]
[Round "3"]
[White "scandalgod"]
[Black "Casablanca"]
[Result "0-1"]
[WhiteElo "2503"]
[BlackElo "2692"]
[TimeControl "180+1"]
[EndTime "14:30:05 PDT"]
[Termination "Casablanca won on time"]

1. d4 {[%clk 0:02:56.5]} 1... Nf6 {[%clk 0:02:59.1]} 2. c4 {[%clk 0:02:56.7]}
2... g6 {[%clk 0:02:59.5]} 3. Nc3 {[%clk 0:02:56.3]} 3... Bg7 {[%clk 0:03:00.2]}
4. e4 {[%clk 0:02:56.2]} 4... O-O {[%clk 0:03:01.1]} 5. f4 {[%clk 0:02:55.8]}
5... d6 {[%clk 0:03:01.4]} 6. Nf3 {[%clk 0:02:56.1]} 6... c5 {[%clk 0:03:01.9]}
7. d5 {[%clk 0:02:56.6]} 7... e6 {[%clk 0:03:02.5]} 8. Be2 {[%clk 0:02:56.8]}
8... exd5 {[%clk 0:03:03.2]} 9. cxd5 {[%clk 0:02:57.6]} 9... Bg4 {[%clk
0:03:03.2]} 10. O-O {[%clk 0:02:57]} 10... Nbd7 {[%clk 0:03:01.3]} 11. Re1
{[%clk 0:02:55.9]} 11... Re8 {[%clk 0:03:01]} 12. Bf1 {[%clk 0:02:54]} 12... Qa5
{[%clk 0:02:59.7]} 13. Bd2 {[%clk 0:02:51.7]} 13... a6 {[%clk 0:02:45.2]} 14. a4
{[%clk 0:02:44.8]} 14... Qb6 {[%clk 0:02:29.3]} 15. Rb1 {[%clk 0:02:33.8]} 15...
Rab8 {[%clk 0:02:19.9]} 16. h3 {[%clk 0:02:29.4]} 16... Bxf3 {[%clk 0:02:19.9]}
17. Qxf3 {[%clk 0:02:30]} 17... Qc7 {[%clk 0:02:15]} 18. Kh1 {[%clk 0:02:24.3]}
18... c4 {[%clk 0:02:14.8]} 19. Be3 {[%clk 0:02:01.8]} 19... b5 {[%clk
0:02:14.4]} 20. axb5 {[%clk 0:02:02]} 20... axb5 {[%clk 0:02:15.3]} 21. Bf2
{[%clk 0:02:00.8]} 21... b4 {[%clk 0:02:06.1]} 22. Na4 {[%clk 0:01:54.5]} 22...
Ra8 {[%clk 0:01:43.8]} 23. Ra1 {[%clk 0:01:53]} 23... Ra5 {[%clk 0:00:46.3]} 24.
b3 {[%clk 0:01:14.6]} 24... cxb3 {[%clk 0:00:45.9]} 25. Rac1 {[%clk 0:01:08.8]}
25... Qb7 {[%clk 0:00:42]} 26. Nb2 {[%clk 0:01:00.5]} 26... Ng4 {[%clk
0:00:27.3]} 27. Nc4 {[%clk 0:00:50]} 27... Nxf2+ {[%clk 0:00:27.1]} 28. Qxf2
{[%clk 0:00:49.4]} 28... Ra6 {[%clk 0:00:27.6]} 29. e5 {[%clk 0:00:36.1]} 29...
dxe5 {[%clk 0:00:27.8]} 30. fxe5 {[%clk 0:00:32.7]} 30... Ra2 {[%clk 0:00:24.3]}
31. Qh4 {[%clk 0:00:19.9]} 31... Nxe5 {[%clk 0:00:15.8]} 32. Nd6 {[%clk
0:00:19.1]} 32... Qd7 {[%clk 0:00:10.3]} 33. Nxe8 {[%clk 0:00:19]} 33... Qxe8
{[%clk 0:00:11.1]} 34. d6 {[%clk 0:00:19]} 34... Qd7 {[%clk 0:00:10.6]} 35. Red1
{[%clk 0:00:18.2]} 35... b2 {[%clk 0:00:10.7]} 36. Rc7 {[%clk 0:00:17.3]} 36...
Qxd6 {[%clk 0:00:09.8]} 37. Rxd6 {[%clk 0:00:16.2]} 37... b1=Q {[%clk
0:00:09.4]} 38. Rd8+ {[%clk 0:00:15.3]} 38... Bf8 {[%clk 0:00:10.1]} 39. Rxf8+
{[%clk 0:00:14.5]} 39... Kxf8 {[%clk 0:00:10.7]} 40. Qh6+ {[%clk 0:00:14.2]}
40... Ke8 {[%clk 0:00:10.7]} 41. Qf4 {[%clk 0:00:09.2]} 41... Qf5 {[%clk
0:00:11.3]} 42. Qc1 {[%clk 0:00:03]} 42... Kf8 {[%clk 0:00:07.4]} 43. Rc8+
{[%clk 0:00:02.4]} 43... Kg7 {[%clk 0:00:08]} 44. Bc4 {[%clk 0:00:02.2]} 44...
Rf2 {[%clk 0:00:07.7]} 45. Rc7 {[%clk 0:00:01.1]} 45... Qf4 {[%clk 0:00:06.3]}
0-1

[Event "Late-Titled-Tuesday-Blitz-April-23-2024"]
[Site "Chess.com"]
[Date "2024.04.23"]
[Round "3"]
[White "zverr1"]
[Black "miraitrunks"]
[Result "0-1"]
[WhiteElo "2444"]
[BlackElo "2206"]
[TimeControl "180+1"]
[EndTime "14:30:06 PDT"]
[Termination "miraitrunks won by checkmate"]

1. d4 {[%clk 0:03:00.9]} 1... d5 {[%clk 0:02:59.1]} 2. c4 {[%clk 0:03:01.3]}
2... Bf5 {[%clk 0:02:59.4]} 3. cxd5 {[%clk 0:03:00.8]} 3... Bxb1 {[%clk
0:02:59]} 4. Qa4+ {[%clk 0:02:58]} 4... c6 {[%clk 0:02:59.3]} 5. dxc6 {[%clk
0:02:57.3]} 5... Nxc6 {[%clk 0:03:00.2]} 6. Rxb1 {[%clk 0:02:55.7]} 6... e5
{[%clk 0:03:00.4]} 7. a3 {[%clk 0:02:48.2]} 7... exd4 {[%clk 0:03:00.4]} 8. g3
{[%clk 0:02:43.5]} 8... Qd5 {[%clk 0:02:51.6]} 9. Nf3 {[%clk 0:02:42.2]} 9... d3
{[%clk 0:02:49.6]} 10. Bg2 {[%clk 0:02:29.9]} 10... dxe2 {[%clk 0:02:47.3]} 11.
Qc2 {[%clk 0:02:21.4]} 11... Nd4 {[%clk 0:02:29]} 12. Qa4+ {[%clk 0:02:00.2]}
12... Nc6 {[%clk 0:02:02.4]} 13. Kxe2 {[%clk 0:01:57.4]} 13... O-O-O {[%clk
0:01:51.8]} 14. Be3 {[%clk 0:01:49.7]} 14... Qd3+ {[%clk 0:01:41.6]} 15. Ke1
{[%clk 0:01:49.1]} 15... Qxb1+ {[%clk 0:01:41.5]} 16. Ke2 {[%clk 0:01:48.6]}
16... Qd3+ {[%clk 0:01:41.1]} 17. Ke1 {[%clk 0:01:48.6]} 17... Nf6 {[%clk
0:01:23]} 18. Nd2 {[%clk 0:01:40.4]} 18... Nd5 {[%clk 0:01:20.2]} 19. Be4 {[%clk
0:01:12.8]} 19... Qa6 {[%clk 0:00:54.2]} 20. Qc2 {[%clk 0:01:11.3]} 20... Nxe3
{[%clk 0:00:53]} 21. fxe3 {[%clk 0:01:12.2]} 21... g6 {[%clk 0:00:40.8]} 22. Kf2
{[%clk 0:01:12]} 22... f5 {[%clk 0:00:40.7]} 23. Bf3 {[%clk 0:00:54.4]} 23...
Bh6 {[%clk 0:00:31.4]} 24. Rc1 {[%clk 0:00:53.3]} 24... Rhe8 {[%clk 0:00:25.5]}
25. Nf1 {[%clk 0:00:52.4]} 25... Rd6 {[%clk 0:00:18]} 26. Qc5 {[%clk 0:00:48.5]}
26... Rde6 {[%clk 0:00:17.3]} 27. Rc3 {[%clk 0:00:45.5]} 27... Qb6 {[%clk
0:00:16.8]} 28. Qc4 {[%clk 0:00:35.2]} 28... Kb8 {[%clk 0:00:14.1]} 29. Qd3
{[%clk 0:00:29.7]} 29... Ne5 {[%clk 0:00:14]} 30. Qd5 {[%clk 0:00:26.2]} 30...
Nxf3 {[%clk 0:00:13.9]} 31. Kxf3 {[%clk 0:00:26]} 31... Rxe3+ {[%clk 0:00:13.6]}
32. Nxe3 {[%clk 0:00:24.9]} 32... Rxe3+ {[%clk 0:00:13.7]} 33. Rxe3 {[%clk
0:00:25.3]} 33... Qxe3+ {[%clk 0:00:14.6]} 34. Kg2 {[%clk 0:00:25.9]} 34... Qe4+
{[%clk 0:00:15.5]} 35. Qxe4 {[%clk 0:00:26.4]} 35... fxe4 {[%clk 0:00:16.4]} 36.
Kf2 {[%clk 0:00:26]} 36... Kc7 {[%clk 0:00:17.3]} 37. h4 {[%clk 0:00:25.8]}
37... Kd6 {[%clk 0:00:18.2]} 38. g4 {[%clk 0:00:26.4]} 38... Ke5 {[%clk
0:00:18]} 39. g5 {[%clk 0:00:26.4]} 39... Bf8 {[%clk 0:00:18.9]} 40. Ke3 {[%clk
0:00:27.1]} 40... Bc5+ {[%clk 0:00:18.2]} 41. Kd2 {[%clk 0:00:27.8]} 41... a5
{[%clk 0:00:18.7]} 42. b4 {[%clk 0:00:28.7]} 42... axb4 {[%clk 0:00:17.6]} 43.
axb4 {[%clk 0:00:29.6]} 43... Bxb4+ {[%clk 0:00:18.2]} 44. Ke3 {[%clk
0:00:30.5]} 44... Bc5+ {[%clk 0:00:18.8]} 45. Ke2 {[%clk 0:00:31.4]} 45... b5
{[%clk 0:00:18.1]} 46. h5 {[%clk 0:00:32.3]} 46... b4 {[%clk 0:00:19]} 47. hxg6
{[%clk 0:00:33.2]} 47... hxg6 {[%clk 0:00:19.3]} 48. Kd2 {[%clk 0:00:33]} 48...
Be7 {[%clk 0:00:19.5]} 49. Kc2 {[%clk 0:00:33.9]} 49... Bxg5 {[%clk 0:00:20.2]}
50. Kb3 {[%clk 0:00:34.8]} 50... Bd2 {[%clk 0:00:20.4]} 51. Kc4 {[%clk
0:00:35.7]} 51... Bc3 {[%clk 0:00:20.9]} 52. Kb3 {[%clk 0:00:36.6]} 52... e3
{[%clk 0:00:21.3]} 53. Kc4 {[%clk 0:00:37.5]} 53... g5 {[%clk 0:00:21.6]} 54.
Kb3 {[%clk 0:00:38.4]} 54... g4 {[%clk 0:00:21]} 55. Kc4 {[%clk 0:00:39.3]}
55... g3 {[%clk 0:00:20.9]} 56. Kb3 {[%clk 0:00:40.2]} 56... g2 {[%clk
0:00:21.2]} 57. Kc4 {[%clk 0:00:41.1]} 57... g1=Q {[%clk 0:00:20.7]} 58. Kd3
{[%clk 0:00:41.8]} 58... Qd1+ {[%clk 0:00:20.3]} 59. Kc4 {[%clk 0:00:42.7]}
59... Qd5# {[%clk 0:00:19.9]} 0-1

[Event "Late-Titled-Tuesday-Blitz-April-23-2024"]
[Site "Chess.com"]
[Date "2024.04.23"]
[Round "3"]
[White "micke12a"]
[Black "JaackCamel"]
[Result "1-0"]
[WhiteElo "2439"]
[BlackElo "2210"]
[TimeControl "180+1"]
[EndTime "14:30:06 PDT"]
[Termination "micke12a won by resignation"]

1. e4 {[%clk 0:02:57.4]} 1... e6 {[%clk 0:02:59.5]} 2. b3 {[%clk 0:02:53.9]}
2... d5 {[%clk 0:02:59]} 3. exd5 {[%clk 0:02:54]} 3... exd5 {[%clk 0:02:58.3]}
4. Bb2 {[%clk 0:02:54.7]} 4... Nf6 {[%clk 0:02:56.8]} 5. Nf3 {[%clk 0:02:55.3]}
5... Bd6 {[%clk 0:02:46.1]} 6. d4 {[%clk 0:02:55.3]} 6... O-O {[%clk 0:02:45.4]}
7. Be2 {[%clk 0:02:56]} 7... Bf5 {[%clk 0:02:41.4]} 8. O-O {[%clk 0:02:55.8]}
8... h6 {[%clk 0:02:41.3]} 9. c4 {[%clk 0:02:55.5]} 9... c6 {[%clk 0:02:38.2]}
10. Nc3 {[%clk 0:02:56.1]} 10... Nbd7 {[%clk 0:02:34.9]} 11. cxd5 {[%clk
0:02:54.1]} 11... Nxd5 {[%clk 0:02:33.7]} 12. Nxd5 {[%clk 0:02:53.8]} 12... cxd5
{[%clk 0:02:33.6]} 13. h3 {[%clk 0:02:50]} 13... Re8 {[%clk 0:02:30.6]} 14. Bd3
{[%clk 0:02:50]} 14... Qf6 {[%clk 0:02:24.8]} 15. Re1 {[%clk 0:02:34.5]} 15...
Rxe1+ {[%clk 0:02:18.7]} 16. Nxe1 {[%clk 0:02:32.7]} 16... Re8 {[%clk
0:02:08.7]} 17. Qf3 {[%clk 0:02:19.4]} 17... Bxd3 {[%clk 0:02:04.4]} 18. Qxd3
{[%clk 0:02:09.5]} 18... Qf4 {[%clk 0:01:54.2]} 19. g3 {[%clk 0:02:07.9]} 19...
Qf6 {[%clk 0:01:40]} 20. Kg2 {[%clk 0:01:57.7]} 20... Qe6 {[%clk 0:01:34.2]} 21.
Nf3 {[%clk 0:01:54.8]} 21... Nf6 {[%clk 0:01:34.3]} 22. Re1 {[%clk 0:01:52.1]}
22... Ne4 {[%clk 0:01:34.2]} 23. Nd2 {[%clk 0:01:48.3]} 23... Bb4 {[%clk
0:01:25.3]} 24. Bc1 {[%clk 0:01:36]} 24... Qf5 {[%clk 0:01:16.5]} 25. Re2 {[%clk
0:01:34.3]} 25... Re6 {[%clk 0:01:08.7]} 26. Nxe4 {[%clk 0:01:22.9]} 26... dxe4
{[%clk 0:01:05.9]} 27. Qe3 {[%clk 0:01:21.9]} 27... Qd5 {[%clk 0:00:58.9]} 28.
Rc2 {[%clk 0:01:17.6]} 28... Re8 {[%clk 0:00:52.9]} 29. Bd2 {[%clk 0:01:08.3]}
29... Ba3 {[%clk 0:00:52.6]} 30. Rc7 {[%clk 0:00:55.1]} 30... Bd6 {[%clk
0:00:47.3]} 31. Rc4 {[%clk 0:00:51.7]} 31... b5 {[%clk 0:00:35]} 32. Rc1 {[%clk
0:00:50.1]} 32... b4 {[%clk 0:00:34.6]} 33. Rc4 {[%clk 0:00:49.1]} 33... a5
{[%clk 0:00:33.4]} 34. Qe2 {[%clk 0:00:46.9]} 34... e3+ {[%clk 0:00:32.8]} 35.
Kh2 {[%clk 0:00:35.4]} 35... Re6 {[%clk 0:00:17.2]} 36. Bxe3 {[%clk 0:00:33.5]}
36... Qe4 {[%clk 0:00:14.7]} 37. Rc8+ {[%clk 0:00:32.4]} 37... Kh7 {[%clk
0:00:14.4]} 38. Qc2 {[%clk 0:00:30.7]} 38... Qxc2 {[%clk 0:00:13.5]} 39. Rxc2
{[%clk 0:00:30.8]} 39... Be7 {[%clk 0:00:11.9]} 40. Kg2 {[%clk 0:00:30.4]} 40...
Bf6 {[%clk 0:00:11.7]} 41. Kf3 {[%clk 0:00:31.1]} 41... Rd6 {[%clk 0:00:11.8]}
42. Ke4 {[%clk 0:00:31]} 42... Re6+ {[%clk 0:00:11.4]} 43. Kd5 {[%clk
0:00:31.4]} 43... Re7 {[%clk 0:00:11.5]} 44. Rc6 {[%clk 0:00:31]} 44... Rd7+
{[%clk 0:00:11.3]} 45. Kc4 {[%clk 0:00:31.5]} 45... Re7 {[%clk 0:00:09.8]} 46.
d5 {[%clk 0:00:31.1]} 46... Rd7 {[%clk 0:00:09.2]} 47. Bd4 {[%clk 0:00:24.9]}
47... Bd8 {[%clk 0:00:08.9]} 48. d6 {[%clk 0:00:24]} 48... Rb7 {[%clk
0:00:08.6]} 49. Kd5 {[%clk 0:00:24.7]} 49... Rb5+ {[%clk 0:00:08.6]} 50. Rc5
{[%clk 0:00:25.4]} 50... Rb7 {[%clk 0:00:08.6]} 51. Kc6 {[%clk 0:00:24.8]} 51...
Rb6+ {[%clk 0:00:09.1]} 52. Kd7 {[%clk 0:00:25.1]} 52... Bg5 {[%clk 0:00:09]}
53. Kc7 {[%clk 0:00:24.2]} 53... Ra6 {[%clk 0:00:08.3]} 54. Rxg5 {[%clk
0:00:22.5]} 54... hxg5 {[%clk 0:00:06.9]} 55. d7 {[%clk 0:00:23.2]} 55... Ra7+
{[%clk 0:00:06.6]} 56. Bxa7 {[%clk 0:00:22.7]} 1-0

[Event "Late-Titled-Tuesday-Blitz-April-23-2024"]
[Site "Chess.com"]
[Date "2024.04.23"]
[Round "3"]
[White "gorgeous1083"]
[Black "Chessdude1987"]
[Result "0-1"]
[WhiteElo "2080"]
[BlackElo "2372"]
[TimeControl "180+1"]
[EndTime "14:30:08 PDT"]
[Termination "Chessdude1987 won on time"]

1. d4 {[%clk 0:03:00.9]} 1... e6 {[%clk 0:02:59.8]} 2. c4 {[%clk 0:02:59.5]}
2... f5 {[%clk 0:03:00.3]} 3. Nf3 {[%clk 0:02:58.6]} 3... Nf6 {[%clk 0:03:00.7]}
4. e3 {[%clk 0:02:58.4]} 4... Be7 {[%clk 0:03:01.2]} 5. Be2 {[%clk 0:02:58.2]}
5... b6 {[%clk 0:03:01.5]} 6. b3 {[%clk 0:02:58]} 6... Bb7 {[%clk 0:03:02]} 7.
a4 {[%clk 0:02:55.2]} 7... a5 {[%clk 0:02:59.2]} 8. O-O {[%clk 0:02:55.1]} 8...
O-O {[%clk 0:02:58.6]} 9. Qc2 {[%clk 0:02:50.8]} 9... Ne4 {[%clk 0:02:57.6]} 10.
Ba3 {[%clk 0:02:47.3]} 10... d6 {[%clk 0:02:56.9]} 11. Nfd2 {[%clk 0:02:44.1]}
11... Nd7 {[%clk 0:02:51.4]} 12. Nxe4 {[%clk 0:02:43.2]} 12... Bxe4 {[%clk
0:02:44]} 13. Bd3 {[%clk 0:02:42.6]} 13... Bb7 {[%clk 0:02:30.4]} 14. Nc3 {[%clk
0:02:42.4]} 14... Qe8 {[%clk 0:02:22.3]} 15. Rac1 {[%clk 0:02:37.5]} 15... Qh5
{[%clk 0:02:08.9]} 16. d5 {[%clk 0:02:32.9]} 16... e5 {[%clk 0:02:06.6]} 17. e4
{[%clk 0:02:24.3]} 17... f4 {[%clk 0:02:06.3]} 18. f3 {[%clk 0:02:24.1]} 18...
g5 {[%clk 0:01:57]} 19. h3 {[%clk 0:02:20.7]} 19... Qg6 {[%clk 0:01:54.7]} 20.
Nb5 {[%clk 0:02:12.5]} 20... Bd8 {[%clk 0:01:53.7]} 21. Kh2 {[%clk 0:02:03.7]}
21... h5 {[%clk 0:01:53.2]} 22. Rg1 {[%clk 0:01:55.2]} 22... Kh8 {[%clk
0:01:34.8]} 23. Be2 {[%clk 0:01:54.8]} 23... Nf6 {[%clk 0:01:31.6]} 24. Qd1
{[%clk 0:01:46]} 24... Bc8 {[%clk 0:01:30.9]} 25. Rc2 {[%clk 0:01:40.1]} 25...
g4 {[%clk 0:01:23.1]} 26. Nxd6 {[%clk 0:01:22.3]} 26... cxd6 {[%clk 0:01:17.1]}
27. Bxd6 {[%clk 0:01:23.2]} 27... Re8 {[%clk 0:01:17.1]} 28. c5 {[%clk
0:01:21.3]} 28... bxc5 {[%clk 0:01:07.7]} 29. Bxc5 {[%clk 0:01:13.3]} 29... Nd7
{[%clk 0:00:48.7]} 30. Bb5 {[%clk 0:01:08.4]} 30... Rg8 {[%clk 0:00:40.9]} 31.
Ba3 {[%clk 0:01:03.4]} 31... Bb6 {[%clk 0:00:40.2]} 32. Rc6 {[%clk 0:00:56.5]}
32... Bxg1+ {[%clk 0:00:26.8]} 33. Kxg1 {[%clk 0:00:54.2]} 33... Qg5 {[%clk
0:00:26.6]} 34. fxg4 {[%clk 0:00:26.8]} 34... hxg4 {[%clk 0:00:19]} 35. hxg4
{[%clk 0:00:25.7]} 35... Nb8 {[%clk 0:00:06.9]} 36. Rd6 {[%clk 0:00:12.7]} 36...
Bxg4 {[%clk 0:00:06.3]} 37. Qa1 {[%clk 0:00:10.6]} 37... Bf3 {[%clk 0:00:05.6]}
38. Bf1 {[%clk 0:00:05.4]} 38... Bxg2 {[%clk 0:00:04.1]} 39. Kf2 {[%clk
0:00:05.5]} 39... Qg3+ {[%clk 0:00:03.7]} 40. Ke2 {[%clk 0:00:05.6]} 40... Qf3+
{[%clk 0:00:03.1]} 41. Kd2 {[%clk 0:00:04.9]} 41... Qe3+ {[%clk 0:00:02.4]} 42.
Kc2 {[%clk 0:00:02.4]} 42... Bxe4+ {[%clk 0:00:01.5]} 0-1

[Event "Late-Titled-Tuesday-Blitz-April-23-2024"]
[Site "Chess.com"]
[Date "2024.04.23"]
[Round "3"]
[White "MaxLeto"]
[Black "NM_Koval"]
[Result "1-0"]
[WhiteElo "2418"]
[BlackElo "2166"]
[TimeControl "180+1"]
[EndTime "14:30:09 PDT"]
[Termination "MaxLeto won by resignation"]

1. b3 {[%clk 0:02:31.6]} 1... c5 {[%clk 0:02:58.3]} 2. c4 {[%clk 0:02:18]} 2...
b6 {[%clk 0:02:57.7]} 3. Bb2 {[%clk 0:02:18.2]} 3... Bb7 {[%clk 0:02:57.7]} 4.
Nc3 {[%clk 0:02:18.6]} 4... e6 {[%clk 0:02:57.7]} 5. e3 {[%clk 0:02:10.6]} 5...
Nf6 {[%clk 0:02:57.1]} 6. Nf3 {[%clk 0:02:10.8]} 6... d5 {[%clk 0:02:57.2]} 7.
d4 {[%clk 0:02:09.9]} 7... cxd4 {[%clk 0:02:50.6]} 8. Nxd4 {[%clk 0:01:47.2]}
8... a6 {[%clk 0:02:48.2]} 9. Nf3 {[%clk 0:01:38.2]} 9... Bb4 {[%clk 0:02:45.4]}
10. a3 {[%clk 0:01:34.6]} 10... Be7 {[%clk 0:02:43.4]} 11. Be2 {[%clk
0:01:32.1]} 11... O-O {[%clk 0:02:42.2]} 12. O-O {[%clk 0:01:24.8]} 12... dxc4
{[%clk 0:02:33.1]} 13. Bxc4 {[%clk 0:01:22.3]} 13... b5 {[%clk 0:02:32.3]} 14.
Be2 {[%clk 0:01:20.4]} 14... Nc6 {[%clk 0:02:25.6]} 15. b4 {[%clk 0:01:18.2]}
15... Rc8 {[%clk 0:02:21]} 16. Qb3 {[%clk 0:01:15.4]} 16... Qb6 {[%clk
0:02:19.5]} 17. Rac1 {[%clk 0:01:15.7]} 17... Rfd8 {[%clk 0:02:18.2]} 18. Rfd1
{[%clk 0:01:15.5]} 18... h6 {[%clk 0:02:14.3]} 19. h3 {[%clk 0:01:14.9]} 19...
Bf8 {[%clk 0:02:09.2]} 20. Nb1 {[%clk 0:00:51.1]} 20... Be7 {[%clk 0:02:04.2]}
21. Nbd2 {[%clk 0:00:46.5]} 21... Nd5 {[%clk 0:01:51.4]} 22. Ne4 {[%clk
0:00:39.1]} 22... Bf8 {[%clk 0:01:42.3]} 23. Nc5 {[%clk 0:00:22.8]} 23... Nce7
{[%clk 0:01:40.2]} 24. Nxb7 {[%clk 0:00:21.6]} 24... Qxb7 {[%clk 0:01:39.1]} 25.
Nd4 {[%clk 0:00:20.3]} 25... Ng6 {[%clk 0:01:33.9]} 26. Bf3 {[%clk 0:00:18.6]}
26... Qb6 {[%clk 0:01:31.7]} 27. Rxc8 {[%clk 0:00:15.1]} 27... Rxc8 {[%clk
0:01:28.6]} 28. Bxd5 {[%clk 0:00:15.5]} 28... exd5 {[%clk 0:01:28.4]} 29. Qxd5
{[%clk 0:00:16.4]} 29... Rd8 {[%clk 0:01:21.4]} 30. Qb3 {[%clk 0:00:13.7]} 30...
Ne5 {[%clk 0:01:16.9]} 31. Nf5 {[%clk 0:00:12.6]} 31... Rxd1+ {[%clk 0:01:12.4]}
32. Qxd1 {[%clk 0:00:13.5]} 32... Qf6 {[%clk 0:01:10]} 33. Nd4 {[%clk
0:00:05.1]} 33... Nc4 {[%clk 0:01:06.5]} 34. Bc1 {[%clk 0:00:04.4]} 34... Bd6
{[%clk 0:01:05.9]} 35. Nf3 {[%clk 0:00:03.7]} 35... Qe6 {[%clk 0:01:03.7]} 36.
Nd4 {[%clk 0:00:03.3]} 36... Qe5 {[%clk 0:01:02.7]} 37. g3 {[%clk 0:00:02.7]}
37... Kh7 {[%clk 0:00:58.9]} 38. Qf3 {[%clk 0:00:03]} 38... f6 {[%clk
0:00:56.9]} 39. Qf5+ {[%clk 0:00:03]} 39... Qxf5 {[%clk 0:00:56]} 40. Nxf5
{[%clk 0:00:03.9]} 40... Be5 {[%clk 0:00:55.8]} 41. Nd4 {[%clk 0:00:04]} 41...
Bxd4 {[%clk 0:00:55.4]} 42. exd4 {[%clk 0:00:04.9]} 42... Kg6 {[%clk 0:00:55.3]}
43. Kf1 {[%clk 0:00:05.1]} 43... Kf7 {[%clk 0:00:56.1]} 44. Ke2 {[%clk
0:00:05.6]} 44... Ke6 {[%clk 0:00:56.8]} 45. Kd3 {[%clk 0:00:06.2]} 45... Kd5
{[%clk 0:00:57.5]} 46. f3 {[%clk 0:00:05.7]} 46... f5 {[%clk 0:00:56.8]} 47. g4
{[%clk 0:00:06.1]} 47... fxg4 {[%clk 0:00:55.8]} 48. hxg4 {[%clk 0:00:05.7]}
48... Nd6 {[%clk 0:00:56]} 49. f4 {[%clk 0:00:04.2]} 49... Ne4 {[%clk
0:00:54.2]} 50. g5 {[%clk 0:00:03.4]} 50... hxg5 {[%clk 0:00:53.3]} 51. fxg5
{[%clk 0:00:04.3]} 51... g6 {[%clk 0:00:53.8]} 52. Bf4 {[%clk 0:00:04.1]} 52...
Nf2+ {[%clk 0:00:51.5]} 53. Ke3 {[%clk 0:00:03.8]} 53... Nd1+ {[%clk 0:00:50.1]}
54. Kd2 {[%clk 0:00:03.4]} 54... Nb2 {[%clk 0:00:51]} 55. Kc3 {[%clk 0:00:03.1]}
55... Nc4 {[%clk 0:00:51.2]} 56. Bc7 {[%clk 0:00:02.2]} 56... Nxa3 {[%clk
0:00:49]} 57. Bb6 {[%clk 0:00:02.3]} 57... Nc4 {[%clk 0:00:49.4]} 58. Bc5 {[%clk
0:00:02.6]} 58... Ke4 {[%clk 0:00:49.2]} 59. Kc2 {[%clk 0:00:01.9]} 59... Ne3+
{[%clk 0:00:48.8]} 60. Kd2 {[%clk 0:00:02]} 60... Nd5 {[%clk 0:00:48.3]} 61. Ke2
{[%clk 0:00:02.2]} 61... Kf5 {[%clk 0:00:48.4]} 62. Kf3 {[%clk 0:00:02.7]} 62...
Kxg5 {[%clk 0:00:49.3]} 63. Ke4 {[%clk 0:00:03.6]} 63... Kf6 {[%clk 0:00:48.8]}
64. Kxd5 {[%clk 0:00:03.9]} 64... g5 {[%clk 0:00:47.9]} 65. Ke4 {[%clk
0:00:04.6]} 65... a5 {[%clk 0:00:47.5]} 66. bxa5 {[%clk 0:00:04.7]} 1-0